fUSD/lending_fUSD_20250906
["ID","MTS","AMOUNT","RATE_DAILY","PERIOD"]
[383928266,1757176240132,-166.67,0.00030323,2]
[383928267,1757176240141,-548.97584291,0.00030389,2]
[383928268,1757176240151,-499.98,0.00030598,30]
[383928269,1757176240161,-1500.45971004,0.00030754,14]
[383928270,1757176240170,-400.0,0.00030927,2]
[383928271,1757176240180,-301.999999,0.00031,2]
[383928272,1757176240189,-3342.72514079,0.00031014,2]
[383928273,1757176240199,-2397.0,0.00031075,3]
[383928274,1757176240208,-12094.0584769,0.00031339,2]
[383928275,1757176240218,-2004.779,0.00031349,29]
[383928276,1757176240228,-187.954,0.00031349,29]
[383928277,1757176240237,-268.44,0.00031627,2]
[383928278,1757176240247,-240.06,0.00031639,2]
[383928279,1757176240257,-234.57,0.00031733,120]
[383928280,1757176240267,-181.49,0.00031756,30]
[383928281,1757176240277,-322.6107,0.00031876,2]
[383928282,1757176240287,-695.39793187,0.00031876,2]
[383928283,1757176240297,-151.0,0.00031876,2]
[383928284,1757176240307,-588.66995943,0.00031876,2]
[383928285,1757176240317,-151.0,0.00031876,2]
[383928286,1757176240327,-151.0,0.00031876,2]
[383928287,1757176240336,-267.46074303,0.00031876,2]
[383928288,1757176240346,-151.0,0.00031876,2]
[383928289,1757176240356,-151.0,0.00031876,2]
[383928290,1757176240366,-151.0,0.00031876,2]
[383928291,1757176240376,-151.0,0.00031876,2]
[383928292,1757176240386,-160.0,0.00031876,2]
[383928294,1757176240396,-151.0,0.00031876,2]
[383928296,1757176240406,-151.0,0.00031876,2]
[383928298,1757176240416,-151.0,0.00031876,2]
[383928300,1757176240425,-151.0,0.00031876,2]
[383928302,1757176240434,-151.0,0.00031876,2]
[383928304,1757176240444,-225.95900921,0.00031876,2]
[383928306,1757176240456,-151.0,0.00031876,2]
[383928308,1757176240465,-151.0,0.00031876,2]
[383928310,1757176240475,-201.93286099,0.00031876,2]
[383928312,1757176240484,-204.52659019,0.00031931,2]
[383928313,1757176240495,-400.0,0.00032006,2]
[383928314,1757176240505,-499.98,0.0003212,30]
[383928315,1757176240514,-848.54573966,0.00032382,2]
[383928317,1757176240524,-151.0,0.00032424,2]
[383928319,1757176240534,-151.0,0.00032424,2]
[383928321,1757176240544,-151.0,0.00032424,2]
[383928323,1757176240553,-353.03,0.00032474,2]
[383928325,1757176240563,-2000.0,0.000325,2]
[383928327,1757176240572,-848.54573966,0.00032816,2]
[383928329,1757176240582,-166.67,0.00032826,2]
[383928330,1757176240591,-500.0,0.00032877,7]
[383928331,1757176240601,-500.0,0.00032877,7]
[383928332,1757176240611,-865.97572624,0.00032877,7]
[383928333,1757176240622,-3342.72514079,0.0003288,2]
[383928334,1757176240631,-300.0,0.000329,12]
[383928335,1757176240641,-548.97584291,0.00032962,2]
[383928336,1757176240651,-5252.51432,0.0003297,2]
[383928337,1757176240661,-151.0,0.00032972,2]
[383928338,1757176240671,-151.0,0.00032972,2]
[383928339,1757176240680,-12094.0584769,0.0003299,2]
[383928340,1757176240690,-4013.0,0.00033,30]
[383928341,1757176240700,-268.44,0.00033065,2]
[383928342,1757176240710,-848.54573966,0.00033079,2]
[383928343,1757176240720,-400.0,0.00033085,2]
[383928344,1757176240729,-12094.0584769,0.00033195,2]
[383928345,1757176240739,-314.28937309,0.00033201,2]
[383928346,1757176240749,-1425.0,0.00033241,2]
[383928347,1757176240759,-334.5472959,0.00033245,2]
[383928348,1757176240769,-277.35679052,0.00033245,2]
[383928349,1757176240778,-160.0,0.00033245,2]
[383928350,1757176240788,-1425.0,0.0003325,2]
[383928351,1757176240798,-242.13,0.00033262,2]
[383928352,1757176240808,-179.337664,0.00033288,7]
[383928353,1757176240818,-3011.38049103,0.0003329,7]
[383928354,1757176240827,-145128.701723,0.00033291,2]
[383928355,1757176240838,-129390.049653,0.00033291,2]
[383928356,1757176240849,-151.63,0.00033291,2]
[383928357,1757176240858,-1425.0,0.00033293,2]
[383928358,1757176240868,-500.0,0.00033299,7]
[383928359,1757176240878,-296.70723284,0.00033299,7]
[383928360,1757176240888,-500.0,0.00033299,7]
[383928361,1757176240897,-308.81456464,0.00033299,7]
[383928362,1757176240907,-500.0,0.00033299,7]
[383928363,1757176240916,-500.0,0.00033299,7]
[383928364,1757176240926,-500.0,0.00033299,7]
[383928365,1757176240935,-500.0,0.00033299,7]
[383928366,1757176240945,-292.53774443,0.00033299,7]
[383928367,1757176240954,-233.85430212,0.00033299,7]
[383928368,1757176240964,-960.92,0.000333,14]
[383928369,1757176240973,-47951.8444996,0.00033301,2]
[383928370,1757176240982,-3412.1181019,0.00033301,2]
[383928371,1757176240991,-160057.03617732,0.00033301,2]
[383928372,1757176241733,-5520.49041217,0.00033301,2]
[383928373,1757176242020,-65964.66839761,0.00033301,2]
[383928374,1757176242029,-181.49,0.0003337,30]
[383928375,1757176242038,-512.43546639,0.00033373,3]
[383928376,1757176242048,-220.48395776,0.00033373,5]
[383928377,1757176242057,-500.0,0.00033373,5]
[383928378,1757176242066,-342.11,0.000334,30]
[383928379,1757176242075,-290.41217914,0.00033424,2]
[383928411,1757176243291,-350.48506481,0.00025534,2]
[383928460,1757176283249,-5000000.0,0.00038209,30]
[383928461,1757176286735,-5000000.0,0.00038209,30]
[383928462,1757176290269,-5000000.0,0.00038209,30]
[383928463,1757176293065,-5000000.0,0.00038209,30]
[383928464,1757176296067,-5000000.0,0.00038209,30]
[383928465,1757176298974,-5000000.0,0.00038209,30]
[383928466,1757176302598,-5000000.0,0.00038209,30]
[383928467,1757176306128,-5000000.0,0.00038209,30]
[383928468,1757176360184,157.69,0.00015494,2]
[383928469,1757176360614,157.69,0.00017708,2]
[383928470,1757176407077,-3000000.0,0.00038209,30]
[383928471,1757176503146,198.95591573,0.00030137,120]
[383928472,1757176503216,1752.54879681,0.00027397,120]
[383928473,1757176567793,879.58991,7.945e-05,2]
[383928476,1757176730127,-5500000.0,0.00038182,30]
[383928479,1757176881718,-250.0,0.0001986,2]
[383928480,1757176970191,-5000000.0,0.0003819,30]
[383928482,1757176974422,-5000000.0,0.0003819,30]
[383928483,1757177119188,-157.69,0.00019921,2]
[383928484,1757177119213,-250.0,0.00020683,2]
[383928503,1757177432625,-167.14,0.00021444,2]
[383928505,1757177432635,-211.89715685,0.000215,2]
[383928507,1757177432645,-57.56295587,0.00022135,2]
[383928509,1757177432657,-100.12704413,0.00022135,2]
[383928510,1757177432666,-239.53987271,0.00022315,2]
[383928511,1757177433335,-60.46012729,0.00022315,2]
[383928512,1757177433363,-300.0,0.00022315,2]
[383928513,1757177433399,-417.09586244,0.00022383,2]
[383928514,1757177433443,-203.21302222,0.00022383,2]
[383928515,1757177433453,-218.31697778,0.00023488,2]
[383928516,1757177433465,-9.57284803,0.00023488,2]
[383928517,1757177433475,-250.0,0.00023588,2]
[383928518,1757177433484,-300.0,0.00023588,2]
[383928519,1757177433494,-193.83715197,0.00023588,2]
[383928520,1757177433506,-56.16284803,0.00023588,2]
[383928521,1757177433516,-250.0,0.00023588,2]
[383928522,1757177433526,-551.136377,0.00024226,2]
[383928523,1757177433536,-157.69,0.00024348,2]
[383928524,1757177433546,-297.86,0.00024658,2]
[383928525,1757177433556,-630.98186037,0.00024899,2]
[383928532,1757177438187,-569.01813963,0.00024899,2]
[383928533,1757177438197,-1405.65322905,0.000249,2]
[383928534,1757177438207,-402.99708804,0.00025363,2]
[383928535,1757177438216,-8167.15077774,0.00025907,2]
[383928536,1757177438225,-5000.0,0.00025907,2]
[383928537,1757177438235,-300.0,0.00025965,2]
[383928538,1757177438244,-683.5,0.00025966,2]
[383928539,1757177438255,-300.0,0.00026183,2]
[383928540,1757177438265,-600.0,0.00026184,2]
[383928541,1757177438274,-200.0,0.00026184,2]
[383928542,1757177438283,-173.438781,0.00026184,2]
[383928544,1757177438293,-151.0,0.00026184,2]
[383928545,1757177438303,-151.0,0.00026184,2]
[383928547,1757177438313,-151.0,0.00026184,2]
[383928549,1757177438322,-151.0,0.00026184,2]
[383928550,1757177438332,-151.0,0.00026184,2]
[383928551,1757177438341,-151.0,0.00026184,2]
[383928553,1757177438350,-151.0,0.00026184,2]
[383928555,1757177438359,-151.0,0.00026184,2]
[383928556,1757177438368,-151.0,0.00026184,2]
[383928557,1757177438377,-151.0,0.00026184,2]
[383928558,1757177438387,-151.0,0.00026184,2]
[383928559,1757177438396,-151.0,0.00026184,2]
[383928560,1757177438406,-1200.0,0.00026198,2]
[383928561,1757177438415,-26599.01798094,0.000262,2]
[383928562,1757177438425,-13118.14700394,0.00026234,2]
[383928563,1757177438434,-13288.12,0.0002627,2]
[383928564,1757177438443,-17019.17,0.0002653,7]
[383928565,1757177438453,-212.67823062,0.0002653,7]
[383928566,1757177438462,-157.69,0.00026562,2]
[383928567,1757177438471,-301.12,0.00026583,2]
[383928568,1757177438480,-160.0,0.00026602,7]
[383928569,1757177438490,-753.1,0.00026603,2]
[383928570,1757177438499,-200.0,0.00026634,2]
[383928571,1757177438508,-150.0,0.00026669,2]
[383928572,1757177438518,-2387.38,0.00026719,2]
[383928573,1757177438529,-200.0,0.00026728,2]
[383928574,1757177438539,-2324.23,0.00026732,2]
[383928575,1757177438549,-666.0,0.00026747,3]
[383928576,1757177438559,-2321.90411567,0.00026789,2]
[383928577,1757177438569,-654.81,0.00026807,2]
[383928578,1757177438579,-1000.0,0.00026843,2]
[383928579,1757177438588,-5000.0,0.00026843,2]
[383928580,1757177438598,-169.64,0.00026922,2]
[383928581,1757177438607,-1680.0,0.00027099,2]
[383928582,1757177438616,-529.5187,0.00027137,2]
[383928583,1757177438626,-7968.79499551,0.000272,2]
[383928584,1757177438635,-161.11524865,0.00027369,2]
[383928585,1757177438645,-500.0,0.00027369,2]
[383928586,1757177438655,-500.0,0.00027369,2]
[383928587,1757177438664,-185.02262779,0.00027369,2]
[383928588,1757177438673,-500.0,0.00027369,2]
[383928589,1757177438683,-500.0,0.00027369,2]
[383928590,1757177438692,-500.0,0.00027369,2]
[383928591,1757177438702,-247.5245175,0.00027369,2]
[383928592,1757177438711,-500.0,0.00027369,2]
[383928593,1757177438721,-500.0,0.00027369,2]
[383928594,1757177438731,-499.99999999,0.00027369,2]
[383928595,1757177438740,-25549.98610249,0.0002737,2]
[383928596,1757177438751,-262.57618367,0.00027397,2]
[383928597,1757177438761,-1500.0,0.00027397,16]
[383928598,1757177438771,-215.64,0.00027425,30]
[383928599,1757177438780,-166.66,0.00027425,2]
[383928600,1757177438790,-150.0,0.00027464,2]
[383928601,1757177438799,-654.81,0.00027812,2]
[383928602,1757177438808,-1405.65322877,0.00027827,8]
[383928603,1757177438818,-297.86,0.00027896,2]
[383928604,1757177438828,-301.12,0.00027912,2]
[383928605,1757177438837,-420.0,0.00028101,2]
[383928606,1757177438847,-250.65801763,0.00028334,2]
[383928607,1757177438856,-327.0,0.00028346,2]
[383928608,1757177438866,-166.66,0.00028557,2]
[383928609,1757177438876,-157.69,0.00028775,2]
[383928610,1757177438887,-654.81,0.00028817,2]
[383928611,1757177438897,-150.0,0.00028834,2]
[383928612,1757177438906,-7750.28857664,0.00028893,2]
[383928613,1757177438916,-222.4738,0.00028923,2]
[383928614,1757177438925,-160.0,0.00028947,2]
[383928615,1757177438934,-212.67823062,0.00028947,2]
[383928616,1757177438944,-160.0,0.00028947,2]
[383928617,1757177438953,-160.0,0.00028947,2]
[383928618,1757177438963,-514.85095374,0.00028953,2]
[383928619,1757177438972,-1850.0,0.00028993,2]
[383928620,1757177438982,-808.0,0.00028993,2]
[383928621,1757177438991,-500.0,0.00028993,2]
[383928622,1757177439001,-500.0,0.00028993,2]
[383928623,1757177439011,-500.0,0.00028993,2]
[383928624,1757177439021,-150.0,0.00028993,2]
[383928625,1757177439033,-150.0,0.00028993,2]
[383928626,1757177439043,-500.0,0.00028993,2]
[383928627,1757177439052,-500.0,0.00028993,2]
[383928628,1757177439063,-150.0,0.00028993,2]
[383928629,1757177439073,-150.0,0.00028993,2]
[383928630,1757177439083,-301.12,0.00029241,2]
[383928631,1757177439093,-1850.0,0.00029267,2]
[383928632,1757177439102,-808.0,0.00029267,2]
[383928633,1757177439112,-500.0,0.00029267,2]
[383928634,1757177439122,-500.0,0.00029267,2]
[383928635,1757177439131,-500.0,0.00029267,2]
[383928636,1757177439141,-500.0,0.00029267,2]
[383928637,1757177439151,-500.0,0.00029267,2]
[383928638,1757177439161,-204.94690509,0.00029267,2]
[383928639,1757177439171,-1850.0,0.00029541,2]
[383928640,1757177439181,-808.0,0.00029541,2]
[383928641,1757177439191,-500.0,0.00029541,2]
[383928642,1757177439200,-500.0,0.00029541,2]
[383928643,1757177439210,-500.0,0.00029541,2]
[383928644,1757177439221,-500.0,0.00029541,2]
[383928645,1757177439231,-500.0,0.00029541,2]
[383928646,1757177439241,-166.66,0.00029689,2]
[383928647,1757177439251,-7750.28857663,0.0002972,2]
[383928648,1757177439262,-322.6107,0.00029749,2]
[383928649,1757177439272,-151.0,0.00029749,2]
[383928650,1757177439282,-479.9654497,0.00029749,2]
[383928651,1757177439291,-267.46074303,0.00029749,2]
[383928652,1757177439301,-151.0,0.00029749,2]
[383928653,1757177439311,-151.0,0.00029749,2]
[383928654,1757177439321,-500.0,0.00029749,2]
[383928655,1757177439330,-270.54895286,0.00029749,2]
[383928656,1757177439340,-160.0,0.00029749,2]
[383928657,1757177439350,-151.0,0.00029749,2]
[383928658,1757177439360,-232.63839908,0.00029749,2]
[383928659,1757177439371,-500.0,0.000298,2]
[383928660,1757177439380,-500.0,0.000298,2]
[383928661,1757177439390,-500.0,0.000298,2]
[383928662,1757177439399,-150.0,0.000298,2]
[383928663,1757177439409,-1538.0,0.000298,2]
[383928664,1757177439420,-500.0,0.000298,2]
[383928665,1757177439430,-150.0,0.000298,2]
[383928666,1757177439440,-420.0,0.000298,2]
[383928667,1757177439449,-150.0,0.000298,2]
[383928668,1757177439459,-500.0,0.000298,2]
[383928669,1757177439469,-167.967719,0.00029804,2]
[383928670,1757177439479,-1850.0,0.00029815,2]
[383928671,1757177439489,-808.0,0.00029815,2]
[383928672,1757177439500,-500.0,0.00029815,2]
[383928673,1757177439510,-500.0,0.00029815,2]
[383928674,1757177439521,-500.0,0.00029815,2]
[383928675,1757177439739,-500.0,0.00029815,2]
[383928676,1757177439771,-500.0,0.00029815,2]
[383928677,1757177439781,-654.81,0.00029823,2]
[383928678,1757177439791,-600.2,0.0002985,2]
[383928679,1757177439801,-600.2,0.0002986,2]
[383928680,1757177439811,-600.2,0.00029863,2]
[383928681,1757177439821,-16381.18107892,0.0002987,2]
[383928705,1757177443156,-4584.20179586,0.0002987,2]
[383928706,1757177443429,-22085.5715932,0.0002987,2]
[383929660,1757177456329,-6753.64643299,0.0002987,2]
[383929736,1757177457216,175.92,0.00029343,120]
[383929860,1757177467257,500.0,0.00029869,120]
[383929861,1757177467344,500.0,0.00029871,120]
[383929862,1757177506481,200.0,0.0002,2]
[383929863,1757177525265,500.0,0.00029522,120]
[383929864,1757177562985,142.31,0.00013699,2]
[383929865,1757177563012,357.69,0.00013699,2]
[383929866,1757177597003,385.11,0.00014461,2]
[383929867,1757177597237,385.11,0.00015222,2]
[383929868,1757177597415,385.11,0.00015983,2]
[383929869,1757177597630,385.11,0.00016744,2]
[383929870,1757177597817,385.11,0.00017505,2]
[383929871,1757177598136,-193.2906508,0.00018266,2]
[383929872,1757177600467,-191.8193492,0.00018266,2]
[383929873,1757177600493,-176.1648807,0.00019027,2]
[383929874,1757177603456,-181.33537773,0.00019027,2]
[383929875,1757177606823,-27.60974157,0.00019027,2]
[383929878,1757177850707,-385.11,0.00019788,2]
[383929879,1757177850730,-250.0,0.00019894,2]
[383929880,1757177850752,-200.0,0.0002,2]
[383929881,1757177850775,-385.11,0.0002055,2]
[383929882,1757177850797,-385.11,0.00021311,2]
[383929883,1757177850818,-250.0,0.00021767,2]
[383929884,1757177850840,-167.1,0.00022,2]
[383929885,1757177850864,-385.11,0.00022072,2]
[383929886,1757177850885,-299.38574942,0.00022733,2]
[383929887,1757177850918,-385.11,0.00022833,2]
[383929888,1757177850941,-385.11,0.00023594,2]
[383929889,1757177850963,-385.11,0.00024355,2]
[383929890,1757177850985,-1311.94301377,0.000249,2]
[383929891,1757177851010,-385.11,0.00025116,2]
[383929892,1757177851032,-540.69123681,0.00025747,2]
[383929893,1757178582580,151.04,0.00013615,2]
[383929894,1757178583014,151.04,0.00014523,2]
[383929895,1757178583265,151.04,0.0001543,2]
[383929896,1757178583484,151.04,0.00016338,2]
[383929897,1757178583683,151.04,0.00017246,2]
[383929898,1757178583890,151.04,0.00018153,2]
[383929929,1757178637324,-151.04,0.00019061,2]
[383929930,1757178637335,-151.04,0.00019969,2]
[383929931,1757178637345,-151.04,0.00020876,2]
[383929932,1757178637356,-167.5,0.00021265,2]
[383929933,1757178637366,-151.04,0.00021784,2]
[383929934,1757178637376,-151.04,0.00022692,2]
[383929935,1757178637387,-151.04,0.00023599,2]
[383929936,1757178637398,-151.04,0.00024507,2]
[383929937,1757178637409,-178.71,0.00024722,2]
[383929938,1757178637420,-2529.1443917,0.000249,2]
[383929939,1757178637430,-164.09383144,0.00025315,2]
[383929940,1757178637441,-151.04,0.00025415,2]
[383929941,1757178637453,-238.19048519,0.00025747,2]
[383929942,1757178637464,-151.04,0.00026322,2]
[383929943,1757178637475,-215.50192599,0.00026487,2]
[383929944,1757178637492,-501.94223704,0.00026487,2]
[383929945,1757178637504,-957.10357032,0.00026487,2]
[383929946,1757178637534,-1000.13225756,0.00026487,2]
[383929947,1757178637556,-622.58000909,0.00026487,2]
[383929948,1757178637567,-1136.66014705,0.00026499,2]
[383929949,1757178637579,-480.46360534,0.00026499,2]
[383929950,1757178637592,-547.49999319,0.00026499,2]
[383929951,1757178637602,-666.0,0.00026775,3]
[383929952,1757178637612,-559.39614187,0.00026838,2]
[383929953,1757178637629,-640.60385813,0.00026838,2]
[383929954,1757178637639,-500.0,0.00026839,2]
[383929955,1757178637651,-200.0,0.00026871,2]
[383929956,1757178637661,-340.00180078,0.00027049,2]
[383929957,1757178637673,-467.56570618,0.00027049,2]
[383929958,1757178637693,-228.43249304,0.00027049,2]
[383929960,1757178637703,-423.0,0.0002705,2]
[383929961,1757178637713,-215.0738,0.00027051,2]
[383929962,1757178637726,-151.0,0.00027051,2]
[383929963,1757178637736,-151.0,0.00027051,2]
[383929964,1757178637746,-151.0,0.00027051,2]
[383929965,1757178637755,-151.0,0.00027051,2]
[383929967,1757178637764,-151.0,0.00027051,2]
[383929969,1757178637773,-151.0,0.00027051,2]
[383929971,1757178637782,-151.0,0.00027051,2]
[383929973,1757178637792,-151.0,0.00027051,2]
[383929975,1757178637801,-151.0,0.00027051,2]
[383929977,1757178637811,-151.0,0.00027051,2]
[383929978,1757178637822,-151.0,0.00027051,2]
[383929979,1757178637831,-151.0,0.00027051,2]
[383929980,1757178637842,-151.0,0.00027051,2]
[383929981,1757178637852,-151.0,0.00027051,2]
[383929982,1757178637862,-151.0,0.00027051,2]
[383929983,1757178637872,-151.0,0.00027051,2]
[383929984,1757178637883,-151.0,0.00027051,2]
[383929985,1757178637894,-151.0,0.00027051,2]
[383929986,1757178637905,-151.0,0.00027051,2]
[383929987,1757178637916,-151.0,0.00027051,2]
[383929988,1757178637928,-151.0,0.00027051,2]
[383929989,1757178637939,-151.0,0.00027051,2]
[383929990,1757178637949,-151.0,0.00027051,2]
[383929991,1757178637961,-151.0,0.00027051,2]
[383929992,1757178637972,-151.0,0.00027051,2]
[383929993,1757178637983,-151.0,0.00027051,2]
[383929994,1757178637994,-151.0,0.00027051,2]
[383929995,1757178638006,-151.0,0.00027051,2]
[383929996,1757178638018,-200.0,0.00027051,2]
[383929997,1757178638030,-500.0,0.00027051,2]
[383929998,1757178638042,-2410.838197,0.00027067,2]
[383930007,1757178638330,-2589.161803,0.00027067,2]
[383930008,1757178638341,-515.99994,0.00027137,2]
[383930009,1757178638351,-151.04,0.0002723,2]
[383930010,1757178638361,-450.0,0.00027287,2]
[383930011,1757178638370,-2066.79935558,0.00027414,7]
[383930013,1757178638636,-623.39429201,0.00027414,7]
[383930051,1757178640340,-2828.22927348,0.00027414,7]
[383930052,1757178640352,-2791.90131137,0.00027414,7]
[383930053,1757178640364,-3778.89840801,0.00027414,7]
[383930054,1757178640395,-458.00735955,0.00027414,7]
[383930055,1757178640406,-160.0,0.00027414,7]
[383930056,1757178640416,-212.67823062,0.00027414,7]
[383930057,1757178640426,-818.41,0.00027425,30]
[383930058,1757178640436,-150.0,0.00027447,2]
[383930059,1757178640447,-1081.25,0.00027451,2]
[383930060,1757178640458,-250.0,0.00027469,2]
[383930061,1757178640467,-160.0,0.00027486,7]
[383930062,1757178640477,-200.0,0.00027489,2]
[383930063,1757178640489,-330.96,0.00027517,2]
[383930064,1757178640501,-154.72,0.00027542,2]
[383930065,1757178640511,-405.0,0.00027734,2]
[383930066,1757178640521,-754.3,0.00027746,2]
[383930067,1757178640531,-2529.14439163,0.00027827,8]
[383930068,1757178640541,-3011.38049103,0.00028,3]
[383930069,1757178640551,-178.71,0.00028146,2]
[383930070,1757178640561,-364.5,0.00028181,2]
[383930071,1757178640572,-166.67,0.00028298,2]
[383930072,1757178640582,-330.96,0.00028549,2]
[383930073,1757178640592,-328.05,0.00028629,2]
[383930074,1757178640602,-154.72,0.00028919,2]
[383930075,1757178640612,-479.10653414,0.00029018,2]
[383930076,1757178640623,-500.0,0.00029044,2]
[383930077,1757178640633,-300.0,0.00029044,2]
[383930078,1757178640647,-295.245,0.00029076,2]
[383930079,1757178640656,-240.08,0.00029134,2]
[383930080,1757178640665,-240.08,0.00029134,2]
[383930081,1757178640675,-416.39161306,0.00029143,2]
[383930082,1757178640685,-83714.8553184,0.00029144,2]
[383930083,1757178640695,-12410.8333057,0.00029144,2]
[383930084,1757178640705,-3387.1302293,0.00029144,2]
[383930085,1757178640715,-99360.2594121,0.00029144,2]
[383930086,1757178640725,-847.06632639,0.00029245,2]
[383930087,1757178640735,-847.06632639,0.00029366,2]
[383930088,1757178640745,-4048.8437,0.00029374,2]
[383930089,1757178640754,-265.7205,0.00029523,2]
[383930090,1757178640764,-514.85095374,0.00029552,2]
[383930091,1757178640774,-160.0,0.00029552,2]
[383930092,1757178640783,-160.0,0.00029552,2]
[383930093,1757178640793,-212.67823062,0.00029552,2]
[383930094,1757178640803,-160.0,0.00029552,2]
[383930096,1757178640812,-22129.25722417,0.0002958,2]
[383930097,1757178640822,-330.96,0.00029581,2]
[383930098,1757178640833,-240.08,0.00029661,2]
[383930099,1757178640843,-1000.0,0.00029671,2]
[383930100,1757178640852,-34675.0329,0.00029671,2]
[383930101,1757178640862,-2500.0,0.00029698,2]
[383930102,1757178640872,-1000.0,0.00029698,2]
[383930103,1757178640883,-222.7758,0.00029708,2]
[383930104,1757178640893,-22719.91540358,0.00029715,2]
[383930105,1757178640903,-847.06632641,0.00029727,2]
[383930106,1757178640913,-240.08,0.00029788,2]
[383930107,1757178640922,-240.08,0.0002979,2]
[383930108,1757178640931,-12079.4430372,0.00029798,2]
[383930109,1757178640942,-73604.22892167,0.000298,2]
[383930110,1757178640951,-500.0,0.000298,10]
[383930111,1757178640961,-1135.99483424,0.000298,2]
[383930112,1757178640971,-12079.4430372,0.00029805,2]
[383930113,1757178640982,-500.0,0.00029815,2]
[383930114,1757178640992,-150.0,0.00029815,2]
[383930115,1757178641002,-500.0,0.00029815,2]
[383930116,1757178641012,-500.0,0.00029815,2]
[383930117,1757178641023,-150.0,0.00029815,2]
[383930118,1757178641033,-500.0,0.00029815,2]
[383930119,1757178641043,-500.0,0.00029815,2]
[383930120,1757178641054,-500.0,0.00029815,2]
[383930121,1757178641063,-204.55335165,0.00029815,2]
[383930122,1757178641074,-500.0,0.00029815,2]
[383930123,1757178641083,-150.0,0.00029815,2]
[383930124,1757178641094,-500.0,0.00029815,2]
[383930125,1757178641108,-500.0,0.00029815,2]
[383930126,1757178641118,-500.0,0.00029815,2]
[383930127,1757178641129,-150.0,0.00029815,2]
[383930128,1757178641139,-500.0,0.00029815,2]
[383930129,1757178641150,-150.0,0.00029815,2]
[383930130,1757178641160,-500.0,0.00029815,2]
[383930131,1757178641170,-500.0,0.00029815,2]
[383930132,1757178641180,-151.2694057,0.00029815,2]
[383930133,1757178641190,-500.0,0.00029815,2]
[383930134,1757178641199,-500.0,0.00029815,2]
[383930135,1757178641208,-150.0,0.00029815,2]
[383930136,1757178641219,-1474.0,0.00029815,2]
[383930137,1757178641229,-500.0,0.00029815,2]
[383930138,1757178641239,-150.0,0.00029815,2]
[383930139,1757178641248,-500.0,0.00029815,2]
[383930140,1757178641258,-500.0,0.00029815,2]
[383930141,1757178641268,-1542.0,0.00029815,2]
[383930142,1757178641278,-673.0,0.00029815,2]
[383930143,1757178641287,-500.0,0.00029815,2]
[383930144,1757178641297,-500.0,0.00029815,2]
[383930145,1757178641307,-150.0,0.00029815,2]
[383930146,1757178641317,-1122.0,0.00029815,2]
[383930147,1757178641327,-500.0,0.00029815,2]
[383930148,1757178641337,-150.0,0.00029815,2]
[383930149,1757178641347,-500.0,0.00029815,2]
[383930150,1757178641358,-500.0,0.00029815,2]
[383930151,1757178641368,-12079.4430372,0.00029852,2]
[383930152,1757178641378,-24795.33009121,0.0002986,2]
[383930166,1757178643522,-272.079216,0.0002986,2]
[383930170,1757178646316,-153.10992471,0.00029711,20]
[383930171,1757178646327,-35329.80587889,0.0002986,2]
[383930172,1757178646337,-150.0,0.00029862,2]
[383930173,1757178646348,-500.0,0.00029862,2]
[383930174,1757178646359,-500.0,0.00029862,2]